fUSD/lending_fUSD_20240409
["ID","MTS","AMOUNT","RATE_DAILY","PERIOD"]
[321989371,1712674278511,-5800.0,0.00020815,2]
[321989372,1712674278521,-1182.45,0.00020821,2]
[321989373,1712674278532,-1818.84,0.00020821,2]
[321989374,1712674278543,-2025.12,0.00020821,2]
[321989375,1712674278555,-595.89,0.00020821,2]
[321989376,1712674278565,-1712.57,0.00020821,2]
[321989377,1712674278575,-1460.5,0.00020821,2]
[321989378,1712674278586,-2288.52,0.00020821,2]
[321989379,1712674278597,-1415.21,0.00020821,2]
[321989380,1712674278606,-4505.73,0.00020821,2]
[321989381,1712674278618,-2286.59,0.00020821,2]
[321989382,1712674278627,-11951.03,0.00020821,2]
[321989383,1712674278637,-1103.96,0.00020821,2]
[321989384,1712674278647,-2504.4,0.00020821,2]
[321989385,1712674278657,-3610.9,0.00020821,2]
[321989386,1712674278668,-1259.35,0.00020821,2]
[321989387,1712674278678,-3315.94,0.00020821,2]
[321989388,1712674278687,-1780.88,0.00020821,2]
[321989389,1712674278697,-1616.26,0.00020821,2]
[321989390,1712674278707,-500.0,0.00020821,2]
[321989391,1712674278718,-1393.67,0.00020821,2]
[321989392,1712674278727,-2797.41,0.00020821,2]
[321989393,1712674278737,-500.0,0.00020821,2]
[321989394,1712674278749,-5800.0,0.00020824,2]
[321989395,1712674278760,-1000.0,0.00020826,2]
[321989396,1712674278769,-500.0,0.00020826,2]
[321989397,1712674278779,-354.0,0.00020828,2]
[321989398,1712674278790,-214.0,0.00020828,2]
[321989399,1712674278800,-150.0,0.00020828,2]
[321989400,1712674278811,-5800.0,0.00020832,2]
[321989401,1712674278821,-5800.0,0.00020841,2]
[321989402,1712674278832,-5800.0,0.00020849,2]
[321989403,1712674278842,-5800.0,0.00020858,2]
[321989404,1712674278852,-5800.0,0.00020866,2]
[321989405,1712674278862,-5800.0,0.00020875,2]
[321989406,1712674278873,-5800.0,0.00020883,2]
[321989407,1712674278883,-5800.0,0.00020892,2]
[321989408,1712674278893,-5800.0,0.000209,2]
[321989409,1712674278904,-191.23010852,0.000209,2]
[321989410,1712674278917,-1005.71769155,0.000209,2]
[321989411,1712674278928,-1005.71769154,0.000209,2]
[321989412,1712674278941,-1005.71769154,0.000209,2]
[321989413,1712674278951,-1005.71769154,0.000209,2]
[321989414,1712674278961,-1005.71769154,0.000209,2]
[321989415,1712674278971,-1005.71769154,0.000209,2]
[321989416,1712674278983,-1005.71769154,0.000209,2]
[321989417,1712674278997,-1005.71769154,0.000209,2]
[321989418,1712674279008,-1005.71769154,0.000209,2]
[321989419,1712674279018,-1005.71769154,0.000209,2]
[321989420,1712674279028,-1005.71769154,0.000209,2]
[321989421,1712674279037,-1005.71769154,0.000209,2]
[321989422,1712674279047,-1005.71769154,0.000209,2]
[321989423,1712674279056,-1005.71769154,0.000209,2]
[321989424,1712674279066,-1005.71769154,0.000209,2]
[321989425,1712674279076,-1005.71769154,0.000209,2]
[321989426,1712674279086,-1005.71769154,0.000209,2]
[321989427,1712674279096,-1005.71769154,0.000209,2]
[321989428,1712674279106,-1005.71769154,0.000209,2]
[321989429,1712674279117,-1198.58,0.00020904,2]
[321989430,1712674279128,-500.0,0.00020913,2]
[321989431,1712674279138,-500.0,0.00020913,2]
[321989432,1712674279148,-500.0,0.00020913,2]
[321989433,1712674279158,-500.0,0.00020913,2]
[321989434,1712674279168,-500.0,0.00020913,2]
[321989435,1712674279178,-500.0,0.00020913,2]
[321989436,1712674279188,-567.69907371,0.00020913,2]
[321989437,1712674279197,-874.36,0.00020913,2]
[321989438,1712674279207,-691.8,0.00020913,2]
[321989439,1712674279217,-500.0,0.00020913,2]
[321989440,1712674279226,-500.0,0.00020913,2]
[321989441,1712674279235,-266.10197744,0.00020913,2]
[321989442,1712674279251,-500.0,0.00020913,2]
[321989443,1712674279261,-500.0,0.00020913,2]
[321989444,1712674279272,-500.0,0.00020913,2]
[321989445,1712674279282,-6036.2,0.00020913,2]
[321989446,1712674279292,-3378.52,0.00020913,2]
[321989447,1712674279303,-500.0,0.00020913,2]
[321989448,1712674279314,-3763.34,0.00020913,2]
[321989449,1712674279325,-937.12,0.00020913,2]
[321989450,1712674279335,-500.0,0.00020913,2]
[321989451,1712674279346,-1090.12,0.00020913,2]
[321989452,1712674279356,-1263.08,0.00020913,2]
[321989453,1712674279368,-500.0,0.00020913,2]
[321989454,1712674279378,-500.0,0.00020913,2]
[321989455,1712674279388,-1861.21,0.00020913,2]
[321989456,1712674279403,-500.0,0.00020913,2]
[321989457,1712674279414,-1623.73,0.00020913,2]
[321989458,1712674279425,-500.0,0.00020913,2]
[321989459,1712674279435,-32582.93,0.00020913,2]
[321989460,1712674279446,-500.0,0.00020913,2]
[321989461,1712674279456,-1532.52,0.00020913,2]
[321989462,1712674279466,-500.0,0.00020913,2]
[321989463,1712674279477,-2758.67,0.00020913,2]
[321989464,1712674279487,-3284.97,0.00020913,2]
[321989465,1712674279504,-500.0,0.00020913,2]
[321989466,1712674279515,-2962.97,0.00020913,2]
[321989467,1712674279525,-150.0,0.00020913,2]
[321989468,1712674279535,-500.0,0.00020913,2]
[321989469,1712674279547,-500.0,0.00020913,2]
[321989470,1712674279557,-1957.1,0.00020913,2]
[321989471,1712674279568,-500.0,0.00020913,2]
[321989472,1712674279578,-9806.85,0.00020913,2]
[321989473,1712674279589,-2135.89,0.00020913,2]
[321989474,1712674279599,-500.0,0.00020913,2]
[321989475,1712674279609,-500.0,0.00020913,2]
[321989476,1712674279619,-1797.01,0.00020913,2]
[321989477,1712674279629,-4410.97,0.00020913,2]
[321989478,1712674279639,-1170.81,0.00020913,2]
[321989479,1712674279650,-500.0,0.00020913,2]
[321989480,1712674279660,-2049.05,0.00020913,2]
[321989481,1712674279672,-1553.38,0.00020913,2]
[321989482,1712674279683,-4210.12,0.00020913,2]
[321989483,1712674279693,-578.69,0.00020913,2]
[321989484,1712674279704,-3769.19,0.00020913,2]
[321989485,1712674279714,-500.0,0.00020913,2]
[321989486,1712674279724,-500.0,0.00020913,2]
[321989487,1712674279734,-500.0,0.00020913,2]
[321989488,1712674279747,-500.0,0.00020913,2]
[321989489,1712674279757,-500.0,0.00020915,2]
[321989490,1712674279767,-500.0,0.00020915,2]
[321989491,1712674279778,-500.0,0.00020915,2]
[321989492,1712674279789,-500.0,0.00020915,2]
[321989493,1712674279800,-500.0,0.00020915,2]
[321989494,1712674279810,-842.95,0.00020915,2]
[321989495,1712674279821,-500.0,0.00020915,2]
[321989496,1712674279831,-500.0,0.00020915,2]
[321989497,1712674279841,-617.66,0.00020915,2]
[321989498,1712674279852,-897.73,0.00020915,2]
[321989499,1712674279862,-700.34,0.00020915,2]
[321989500,1712674279872,-805.62,0.00020915,2]
[321989501,1712674279882,-639.45,0.00020915,2]
[321989502,1712674279893,-500.0,0.00020915,2]
[321989503,1712674279904,-500.0,0.00020915,2]
[321989504,1712674279915,-833.8,0.00020915,2]
[321989505,1712674279926,-969.1,0.00020915,2]
[321989506,1712674279938,-500.0,0.00020915,2]
[321989507,1712674279948,-916.08,0.00020915,2]
[321989508,1712674279958,-500.0,0.00020915,2]
[321989509,1712674279968,-672.83,0.00020915,2]
[321989510,1712674279979,-624.08,0.00020915,2]
[321989511,1712674279991,-808.8,0.00020915,2]
[321989512,1712674280002,-500.0,0.00020915,2]
[321989513,1712674280013,-692.85,0.00020915,2]
[321989514,1712674280023,-500.0,0.00020915,2]
[321989515,1712674280034,-782.58,0.00020915,2]
[321989516,1712674280044,-712.41,0.00020915,2]
[321989517,1712674280054,-500.0,0.00020915,2]
[321989518,1712674280064,-559.06935744,0.00020915,2]
[321989519,1712674280074,-722.61,0.00020915,2]
[321989520,1712674280085,-632.47,0.00020915,2]
[321989521,1712674280095,-593.62,0.00020915,2]
[321989522,1712674280105,-500.0,0.00020915,2]
[321989523,1712674280116,-1124.6,0.00020915,2]
[321989524,1712674280125,-1750.14,0.00020915,2]
[321989525,1712674280136,-695.99,0.00020915,2]
[321989526,1712674280145,-555.49284905,0.00020915,2]
[321989527,1712674280156,-500.0,0.00020915,2]
[321989528,1712674280166,-592.75,0.00020915,2]
[321989529,1712674280176,-1070.69,0.00020915,2]
[321989530,1712674280187,-500.0,0.00020915,2]
[321989531,1712674280197,-1233.11,0.00020915,2]
[321989532,1712674280208,-798.38,0.00020915,2]
[321989533,1712674280218,-2517.11,0.00020915,2]
[321989534,1712674280228,-500.0,0.00020915,2]
[321989535,1712674280239,-358.13,0.00020915,2]
[321989536,1712674280250,-881.79,0.00020915,2]
[321989537,1712674280260,-967.92,0.00020915,2]
[321989538,1712674280270,-1542.87,0.00020915,2]
[321989539,1712674280280,-4055.53,0.00020915,2]
[321989540,1712674280290,-636.28,0.00020915,2]
[321989541,1712674280299,-1278.07,0.00020915,2]
[321989542,1712674280310,-1650.72,0.00020915,2]
[321989543,1712674280321,-759.09,0.00020915,2]
[321989544,1712674280331,-718.47,0.00020915,2]
[321989545,1712674280340,-922.43,0.00020915,2]
[321989546,1712674280350,-789.1,0.00020915,2]
[321989547,1712674280361,-2452.78,0.00020915,2]
[321989548,1712674280371,-1037.91,0.00020915,2]
[321989549,1712674280382,-2600.08,0.00020915,2]
[321989550,1712674280392,-6200.47,0.00020915,2]
[321989551,1712674280403,-1423.9,0.00020915,2]
[321989552,1712674280413,-1921.2,0.00020915,2]
[321989553,1712674280424,-2792.91,0.00020915,2]
[321989554,1712674280434,-4077.97,0.00020915,2]
[321989555,1712674280445,-5797.14,0.00020915,2]
[321989556,1712674280456,-5906.39,0.00020915,2]
[321989557,1712674280466,-1079.17,0.00020915,2]
[321989558,1712674280476,-500.0,0.00020915,2]
[321989559,1712674280487,-3361.33,0.00020915,2]
[321989560,1712674280501,-1284.77,0.00020915,2]
[321989561,1712674280512,-5886.08,0.00020915,2]
[321989562,1712674280523,-724.57,0.00020915,2]
[321989563,1712674280534,-8496.55,0.00020915,2]
[321989564,1712674280544,-3430.69,0.00020915,2]
[321989565,1712674280554,-1816.11,0.00020915,2]
[321989566,1712674280565,-1112.14,0.00020915,2]
[321989567,1712674280575,-5799.7,0.00020915,2]
[321989568,1712674280585,-500.0,0.00020915,2]
[321989569,1712674280596,-3537.97,0.00020915,2]
[321989570,1712674280607,-3016.08,0.00020915,2]
[321989571,1712674280617,-500.0,0.00020915,2]
[321989572,1712674280628,-2166.03,0.00020915,2]
[321989573,1712674280638,-2170.75,0.00020915,2]
[321989574,1712674280649,-2793.14,0.00020915,2]
[321989575,1712674280659,-3131.87,0.00020915,2]
[321989576,1712674280670,-500.0,0.00020915,2]
[321989577,1712674280679,-2135.84,0.00020915,2]
[321989578,1712674280689,-12126.76,0.00020915,2]
[321989579,1712674280699,-508.37,0.00020915,2]
[321989580,1712674280709,-9268.95,0.00020915,2]
[321989581,1712674280719,-3108.86,0.00020915,2]
[321989582,1712674280729,-962.18,0.00020915,2]
[321989583,1712674280743,-1005.23,0.00020915,2]
[321989584,1712674280754,-28103.17,0.00020915,2]
[321989585,1712674280764,-500.0,0.00020915,2]
[321989586,1712674280774,-2891.01,0.00020915,2]
[321989587,1712674280785,-968.9,0.00020915,2]
[321989588,1712674280796,-1530.15,0.00020915,2]
[321989589,1712674280806,-731.76,0.00020915,2]
[321989590,1712674280816,-1170.72,0.00020915,2]
[321989591,1712674280826,-739.24,0.00020915,2]
[321989592,1712674280837,-1130.64,0.00020915,2]
[321989593,1712674280846,-1001.01,0.00020915,2]
[321989594,1712674280857,-169.32,0.00020915,2]
[321989595,1712674280868,-412.94713748,0.00020916,2]
[321989596,1712674280878,-351.57739544,0.00020916,2]
[321989597,1712674280888,-500.0,0.00020916,2]
[321989598,1712674280897,-500.0,0.00020916,2]
[321989599,1712674280907,-500.0,0.00020916,2]
[321989600,1712674280919,-500.0,0.00020916,2]
[321989601,1712674280929,-423.2476768,0.00020916,2]
[321989602,1712674280941,-528.02,0.00020916,2]
[321989603,1712674280951,-559.25,0.00020916,2]
[321989604,1712674280960,-327.71430217,0.00020916,2]
[321989605,1712674280971,-702.59,0.00020916,2]
[321989606,1712674280982,-500.0,0.00020916,2]
[321989607,1712674280994,-556.85,0.00020916,2]
[321989608,1712674281004,-500.0,0.00020916,2]
[321989609,1712674281014,-500.0,0.00020916,2]
[321989610,1712674281025,-500.0,0.00020916,2]
[321989611,1712674281103,-389.69713237,0.00020916,2]
[321989612,1712674281113,-500.0,0.00020916,2]
[321989613,1712674281123,-497.5289333,0.00020916,2]
[321989614,1712674281132,-500.0,0.00020916,2]
[321989615,1712674281143,-581.29,0.00020916,2]
[321989616,1712674281153,-500.0,0.00020916,2]
[321989617,1712674281163,-361.1532256,0.00020916,2]
[321989618,1712674281173,-500.0,0.00020916,2]
[321989619,1712674281183,-500.65,0.00020916,2]
[321989620,1712674281194,-500.0,0.00020916,2]
[321989621,1712674281203,-502.57,0.00020916,2]
[321989622,1712674281212,-500.0,0.00020916,2]
[321989623,1712674281222,-665.51,0.00020916,2]
[321989624,1712674281231,-839.35,0.00020916,2]
[321989625,1712674281243,-206.9201258,0.00020916,2]
[321989626,1712674281253,-500.0,0.00020916,2]
[321989627,1712674281263,-500.0,0.00020916,2]
[321989628,1712674281274,-500.0,0.00020916,2]
[321989629,1712674281283,-500.0,0.00020916,2]
[321989630,1712674281293,-500.0,0.00020916,2]
[321989631,1712674281303,-768.05,0.00020916,2]
[321989632,1712674281313,-500.0,0.00020916,2]
[321989633,1712674281323,-500.0,0.00020916,2]
[321989634,1712674281333,-500.0,0.00020916,2]
[321989635,1712674281343,-587.68,0.00020916,2]
[321989636,1712674281352,-500.0,0.00020916,2]
[321989637,1712674281362,-727.92,0.00020916,2]
[321989638,1712674281372,-500.0,0.00020916,2]
[321989639,1712674281383,-183.36958062,0.00020916,2]
[321989640,1712674281393,-500.0,0.00020916,2]
[321989641,1712674281403,-620.22,0.00020916,2]
[321989642,1712674281413,-500.0,0.00020916,2]
[321989643,1712674281423,-500.0,0.00020916,2]
[321989644,1712674281432,-520.31,0.00020916,2]
[321989645,1712674281442,-500.0,0.00020916,2]
[321989646,1712674281452,-500.0,0.00020916,2]
[321989647,1712674281461,-500.0,0.00020916,2]
[321989648,1712674281471,-550.68,0.00020916,2]
[321989649,1712674281481,-1218.05,0.00020916,2]
[321989650,1712674281494,-500.0,0.00020916,2]
[321989651,1712674281504,-500.0,0.00020916,2]
[321989652,1712674281514,-500.0,0.00020916,2]
[321989653,1712674281524,-500.0,0.00020916,2]
[321989654,1712674281534,-553.65,0.00020916,2]
[321989655,1712674281545,-750.58,0.00020916,2]
[321989656,1712674281555,-500.0,0.00020916,2]
[321989657,1712674281565,-733.34,0.00020916,2]
[321989658,1712674281575,-500.0,0.00020916,2]
[321989659,1712674281586,-507.35,0.00020916,2]
[321989660,1712674281596,-500.0,0.00020916,2]
[321989661,1712674281606,-967.27,0.00020916,2]
[321989662,1712674281617,-547.31,0.00020916,2]
[321989663,1712674281627,-711.65,0.00020916,2]
[321989664,1712674281637,-539.29,0.00020916,2]
[321989665,1712674281646,-500.0,0.00020916,2]
[321989666,1712674281656,-783.39,0.00020916,2]
[321989667,1712674281667,-500.0,0.00020916,2]
[321989668,1712674281677,-500.0,0.00020916,2]
[321989669,1712674281687,-500.0,0.00020916,2]
[321989670,1712674281697,-500.0,0.00020916,2]
[321989671,1712674281707,-500.0,0.00020916,2]
[321989672,1712674281717,-500.0,0.00020916,2]
[321989673,1712674281727,-678.2,0.00020916,2]
[321989674,1712674281737,-500.0,0.00020916,2]
[321989675,1712674281750,-703.55,0.00020916,2]
[321989676,1712674281760,-552.05,0.00020916,2]
[321989677,1712674281770,-500.0,0.00020916,2]
[321989678,1712674281780,-500.0,0.00020916,2]
[321989679,1712674281789,-500.0,0.00020916,2]
[321989680,1712674281799,-809.79,0.00020916,2]
[321989681,1712674281809,-680.22,0.00020916,2]
[321989682,1712674281818,-653.3,0.00020916,2]
[321989683,1712674281828,-500.0,0.00020916,2]
[321989684,1712674281838,-500.0,0.00020916,2]
[321989685,1712674281848,-507.29,0.00020916,2]
[321989686,1712674281857,-500.0,0.00020916,2]
[321989687,1712674281866,-903.8,0.00020916,2]
[321989688,1712674281876,-1568.58,0.00020916,2]
[321989689,1712674281885,-649.28,0.00020916,2]
[321989690,1712674281895,-547.5,0.00020916,2]
[321989691,1712674281904,-500.0,0.00020916,2]
[321989692,1712674281914,-500.0,0.00020916,2]
[321989693,1712674281925,-500.0,0.00020916,2]
[321989694,1712674281936,-1047.68,0.00020916,2]
[321989695,1712674281950,-422.15035616,0.00020916,2]
[321989696,1712674281960,-1838.26,0.00020916,2]
[321989697,1712674281969,-500.0,0.00020916,2]
[321989698,1712674281980,-2093.46,0.00020916,2]
[321989699,1712674281991,-665.46,0.00020916,2]
[321989700,1712674282002,-517.31,0.00020916,2]
[321989701,1712674282012,-2147.22,0.00020916,2]
[321989702,1712674282021,-248.08203923,0.00020916,2]
[321989703,1712674282031,-500.0,0.00020916,2]
[321989704,1712674282041,-2080.77,0.00020916,2]
[321989705,1712674282050,-500.0,0.00020916,2]
[321989706,1712674282060,-611.62,0.00020916,2]
[321989707,1712674282069,-1190.95,0.00020916,2]
[321989708,1712674282080,-642.96,0.00020916,2]
[321989709,1712674282090,-500.0,0.00020916,2]
[321989710,1712674282099,-3370.62,0.00020916,2]
[321989711,1712674282109,-788.21,0.00020916,2]
[321989712,1712674282119,-2491.81,0.00020916,2]
[321989713,1712674282129,-637.6,0.00020916,2]
[321989714,1712674282138,-500.0,0.00020916,2]
[321989715,1712674282148,-1120.41,0.00020916,2]
[321989716,1712674282159,-28284.14,0.00020916,2]
[321989717,1712674282168,-500.0,0.00020916,2]
[321989718,1712674282178,-1040.0,0.00020916,2]
[321989719,1712674282187,-500.0,0.00020916,2]
[321989720,1712674282196,-690.25,0.00020916,2]
[321989721,1712674282205,-500.0,0.00020916,2]
[321989722,1712674282215,-653.93,0.00020916,2]
[321989723,1712674282224,-6681.82,0.00020916,2]
[321989724,1712674282234,-825.82,0.00020916,2]
[321989725,1712674282245,-500.0,0.00020916,2]
[321989726,1712674282255,-500.0,0.00020916,2]
[321989727,1712674282264,-500.0,0.00020916,2]
[321989728,1712674282274,-500.0,0.00020916,2]
[321989729,1712674282283,-500.0,0.00020916,2]
[321989730,1712674282293,-522.52,0.00020916,2]
[321989731,1712674282303,-500.0,0.00020916,2]
[321989732,1712674282312,-1336.33,0.00020916,2]
[321989733,1712674282322,-183.89007532,0.00020916,2]
[321989734,1712674282332,-2456.8,0.00020916,2]
[321989735,1712674282342,-500.0,0.00020916,2]
[321989736,1712674282352,-591.45,0.00020916,2]
[321989737,1712674282361,-500.0,0.00020916,2]
[321989738,1712674282371,-750.33,0.00020916,2]
[321989739,1712674282382,-25335.88,0.00020916,2]
[321989740,1712674282392,-182.76293833,0.00020916,2]
[321989741,1712674282401,-5449.32,0.00020916,2]
[321989742,1712674282411,-1941.86,0.00020916,2]
[321989743,1712674282420,-1188.17,0.00020916,2]
[321989744,1712674282431,-671.65,0.00020916,2]
[321989745,1712674282440,-500.0,0.00020916,2]
[321989746,1712674282449,-532.4,0.00020916,2]
[321989747,1712674282459,-1567.94,0.00020916,2]
[321989748,1712674282468,-1504.3,0.00020916,2]
[321989749,1712674282477,-500.0,0.00020916,2]
[321989750,1712674282487,-2247.8,0.00020916,2]
[321989751,1712674282501,-845.45,0.00020916,2]
[321989752,1712674282510,-2290.94,0.00020916,2]
[321989753,1712674282519,-500.0,0.00020916,2]
[321989754,1712674282529,-1058.37,0.00020916,2]
[321989755,1712674282539,-5394.8,0.00020916,2]
[321989756,1712674282552,-739.57,0.00020916,2]
[321989757,1712674282563,-596.77,0.00020916,2]
[321989758,1712674282573,-796.64,0.00020916,2]
[321989759,1712674282582,-533.26,0.00020916,2]
[321989760,1712674282591,-1159.74,0.00020916,2]
[321989761,1712674282600,-674.14,0.00020916,2]
[321989762,1712674282610,-500.0,0.00020916,2]
[321989763,1712674282620,-955.98,0.00020916,2]
[321989764,1712674282630,-662.17,0.00020916,2]
[321989765,1712674282641,-500.0,0.00020916,2]
[321989766,1712674282651,-37952.1977474,0.0002093,2]
[321989767,1712674283055,-4792.22402039,0.0002093,2]
[321989768,1712674283065,-659.79850234,0.00020972,2]
[321989769,1712674283076,-2869.01912199,0.00020972,2]
[321989770,1712674283087,-206.59266165,0.00020994,2]
[321989771,1712674283098,-3483.23117143,0.00020994,2]
[321989772,1712674283109,-4086.65117218,0.00020995,2]
[321989773,1712674283122,-294.82305056,0.00020995,2]
[321989774,1712674283146,-1028.98584282,0.00020995,2]
[321989775,1712674283170,-557991.75031164,0.00020995,2]
[321989776,1712674283183,-5853.82678265,0.00020995,2]
[321989777,1712674283197,-543.04399336,0.00020995,2]
[321989778,1712674285191,-53416.81593042,0.00020995,2]
[321989779,1712674285202,-397.00005046,0.00020995,2]
[321989780,1712674285377,-500.0,0.00019452,2]
[321989781,1712674285393,-1456.23,0.00020547,2]
[321989782,1712674285403,-269.18739799,0.00020995,2]
[321989783,1712674285416,-11831.23738726,0.00020995,2]
[321989784,1712674285429,-3786.11484067,0.00020995,2]
[321989785,1712674285442,-4392.83676219,0.00020995,2]
[321989786,1712674285454,-25350.38105233,0.00020995,2]
[321989787,1712674285468,-2719.05334602,0.00020995,2]
[321989788,1712674285481,-68305.0196371,0.00020995,2]
[321989789,1712674285495,-19573.59667298,0.00020995,2]
[321989790,1712674285516,-86893.19801072,0.00020995,2]
[321989791,1712674285537,-11178.91186792,0.00020995,2]
[321989792,1712674285548,-167.2867,0.00020995,2]
[321989793,1712674285560,-155.0,0.00020998,2]
[321989794,1712674285571,-155.11935146,0.00020999,2]
[321989795,1712674285588,-624672.7391295,0.00021,2]
[321989796,1712674285743,-500.0,0.00019545,2]
[321989797,1712674285768,-500.0,0.00019726,2]
[321989798,1712674285780,-587.24564,0.00019784,2]
[321989799,1712674286071,-1171.11803043,0.00019784,2]
[321989800,1712674286082,-500.0,0.00019819,2]
[321989801,1712674286095,-500.0,0.0002,2]
[321989802,1712674286107,-500.0,0.00020093,2]
[321989803,1712674286118,-500.0,0.00020273,2]
[321989804,1712674286130,-500.0,0.00020367,2]
[321989805,1712674286141,-500.0,0.00020547,2]
[321989806,1712674286152,-500.0,0.00020641,2]
[321989807,1712674286163,-440.93567402,0.00020821,2]
[321989808,1712674286176,-728.65757554,0.00020821,2]
[321989809,1712674286189,-286.63675044,0.00020821,2]
[321989810,1712674286199,-1005.71769154,0.000209,2]
[321989811,1712674286211,-287.13051943,0.00020916,2]
[321989812,1712674286226,-212.86948057,0.00020916,2]
[321989813,1712674286238,-744.07821735,0.00021,2]
[321989814,1712674286256,-243.04350048,0.00021,2]
[321989815,1712674286628,-7826.37,0.00019258,2]
[321989816,1712674286640,-500.0,0.00019269,2]
[321989817,1712674286650,-500.0,0.00019272,2]
[321989818,1712674286660,-500.0,0.00019372,2]
[321989819,1712674286671,-500.0,0.00019646,2]
[321989820,1712674286684,-500.0,0.0001992,2]
[321989821,1712674286695,-191.63,0.00020821,2]
[321989822,1712674286712,-308.37,0.00020821,2]
[321989823,1712674286724,-500.0,0.00020915,2]
[321989824,1712674286736,-11799.68257019,0.00021,2]
[321989825,1712674288468,-3116.22147,0.00021,2]
[321989826,1712674288480,-12869.60756388,0.00021,2]
[321989827,1712674288492,-518.88,0.00021,2]
[321989828,1712674288514,-500.0,0.00020194,2]
[321989829,1712674288524,-34337.05,0.00021,2]
[321989830,1712674288536,-28048.0,0.00021,2]
[321989831,1712674288554,-275.19311246,0.00021,2]
[321989832,1712674288566,-6372.579252,0.00021,2]
[321989833,1712674288578,-857.61400001,0.00021,2]
[321989834,1712674288596,-616.78000762,0.00021,2]
[321989835,1712674288608,-881.425,0.00021,2]
[321989836,1712674288619,-21109.4516921,0.00021,2]
[321989837,1712674288630,-1352.18524539,0.00021,2]
[321989838,1712674288649,-688.71803,0.00021,2]
[321989839,1712674288661,-686.68600008,0.00021,2]
[321989840,1712674288672,-5212.575,0.00021,2]
[321989841,1712674288689,-354.354,0.00021,2]
[321989842,1712674290417,800.0,0.000195,7]
[321989843,1712674291169,1299.72215487,0.00019271,5]
[321989844,1712674293864,202.91344887,0.00017588,5]
[321989845,1712674294401,150.5,0.0001959,15]
[321989846,1712674294572,150.5,0.0001959,15]
[321989847,1712674294619,150.5,0.0001958,15]
[321989848,1712674294742,150.5,0.0001958,15]
[321989849,1712674294916,167.0,0.0001957,15]
[321989850,1712674295177,150.5,0.0001957,15]
[321989851,1712674295272,150.5,0.0002099,15]
[321989852,1712674295612,150.5,0.0002098,15]
[321989853,1712674295860,182.0,0.0002097,15]
[321989854,1712674302874,1682.4434691,0.00025,30]
[321989855,1712674303808,12494.96550494,0.00032654,30]
[321989856,1712674383633,150.5,0.0002059,15]
[321989857,1712674384118,150.5,0.0002058,15]
[321989858,1712674384606,150.5,0.0002057,15]
[321989859,1712674385120,150.5,0.0002099,15]
[321989860,1712674385628,166.0,0.0002098,15]
[321989862,1712674415863,1493.09,0.00032654,30]
[321989863,1712674419546,1438.2851,0.00017901,2]
[321989867,1712674462488,3000.0,0.00032654,30]
[321989868,1712674473932,3000.0,0.00032654,30]
[321989869,1712674474729,1406.1528887,0.00015,2]
[321989870,1712674479281,1142.82,0.00032654,120]
[321989872,1712674482796,1337.48961931,0.0002736,120]
[321989873,1712674483128,5350.0,0.00027,30]
[321989874,1712674487406,3000.0,0.00032654,30]
[321989875,1712674499949,680.91,0.0001641,2]